bitfinex/quotes_ETHUSD_20230403
["timestamp","ask_amount","ask_price","bid_price","bid_amount"]
[1680544975841,5.8116,1803.1,1802.4,13.6993015]
[1680544976037,5.81886903,1803.1,1802.7,8.62102218]
[1680544976236,5.81886903,1803.1,1802.8,7.79639]
[1680544976411,5.81886903,1803.1,1802.9,2.76602218]
[1680544976745,0.00726903,1803.1,1803.0,0.27731]
[1680544976915,0.00726903,1803.1,1803.0,3.04333218]
[1680544976916,0.00526903,1803.1,1803.0,3.04333218]
[1680544977124,0.00526903,1803.1,1803.0,3.59796218]
[1680544978747,0.00526903,1803.1,1803.0,2.76602218]
[1680544979243,0.00526903,1803.1,1803.0,3.04333218]
[1680544982807,0.00526903,1803.1,1802.9,0.48713154]
[1680544983110,0.00526903,1803.1,1802.9,0.48513154]
[1680544983111,1.235,1803.0,1802.9,0.48513154]
[1680544983311,2.3590269,1803.0,1802.9,0.48513154]
[1680544983511,2.36429593,1803.0,1802.9,0.48513154]
[1680544984049,2.36429593,1803.0,1802.2,0.002]
[1680544984050,1.0,1802.6,1802.2,0.002]
[1680544984348,1.0,1802.6,1801.9,0.528]
[1680544984349,1.224,1802.3,1801.9,0.528]
[1680544984554,1.0,1802.4,1801.7,1.11205]
[1680544984555,1.227,1802.1,1801.8,0.528]
[1680544984723,1.227,1802.1,1801.9,2.76602218]
[1680544984909,1.227,1802.1,1802.0,0.45596904]
[1680544985135,1.47875883,1802.1,1802.0,0.45596904]
[1680544985332,2.32781962,1802.1,1802.0,0.45596904]
[1680544985963,2.32781962,1802.1,1801.6,0.006]
[1680544986276,1.227,1801.9,1801.7,2.76602218]
[1680544986977,1.227,1801.9,1801.8,0.4564606]
[1680544987177,1.227,1801.9,1801.8,3.22248278]
[1680544988342,1.235,1802.0,1801.8,3.22248278]
[1680544988687,1.32030608,1802.0,1801.8,3.22248278]
[1680544989038,1.235,1802.0,1801.9,2.76602218]
[1680544989380,5.50296903,1802.2,1801.9,3.04350218]
[1680544989584,0.002,1802.2,1801.9,8.89850218]
[1680544989880,1.24026903,1802.4,1802.0,0.45015576]
[1680544990087,2.46265593,1802.4,1802.1,2.76602218]
[1680544991152,0.00526903,1802.5,1802.1,3.04346218]
[1680544991381,6.83196903,1802.6,1802.1,2.76602218]
[1680544991547,6.83196903,1802.6,1802.1,3.04347218]
[1680544992080,1.227,1802.5,1802.1,2.76602218]
[1680544992288,2.2700099,1802.5,1802.1,2.76602218]
[1680544992444,1.9926099,1802.5,1802.1,2.76602218]
[1680544992641,2.2699999,1802.5,1802.1,2.76602218]
[1680544992854,1.9926099,1802.5,1802.1,2.76602218]
[1680544993072,1.227,1802.5,1802.1,2.76602218]
[1680544993269,1.50439,1802.5,1802.1,2.76602218]
[1680544993592,2.05917,1802.5,1802.4,0.443688]
[1680544994564,1.50439,1802.5,1802.4,0.443688]
[1680544995147,1.50439,1802.5,1802.4,3.20971018]
[1680544995148,1.227,1802.5,1802.4,3.20971018]
[1680544995342,0.00726903,1802.6,1802.4,3.20971018]
[1680544995601,10.002,1802.9,1802.5,2.76602218]
[1680544995602,0.00526903,1802.8,1802.5,2.76602218]
[1680544995899,1.24026903,1802.9,1802.5,3.59817218]
[1680544996081,1.24026903,1802.9,1802.5,3.04339218]
[1680544996760,1.235,1802.9,1802.5,3.04339218]
[1680544997677,1.24026903,1803.0,1802.5,10.0038527]
[1680544997852,5.5566,1803.1,1802.5,10.0058527]
[1680544997853,5.56186903,1803.1,1802.5,10.0058527]
[1680544998458,5.56186903,1803.1,1802.6,0.528]
[1680544998658,5.56186903,1803.1,1802.7,3.59807218]
[1680544998968,0.00726903,1803.1,1802.7,3.59807218]
[1680544999178,11.75020001,1803.2,1802.7,3.59807218]
[1680544999179,11.75746904,1803.2,1802.7,3.59807218]
[1680544999386,1.34226904,1803.2,1802.7,3.59807218]
[1680544999614,1.33500001,1803.2,1802.7,3.59807218]
[1680544999902,0.11000001,1803.2,1802.8,8.62102218]
[1680545000106,0.11000001,1803.2,1802.9,0.27732]
[1680545000332,0.11000001,1803.2,1803.0,3.04332218]
[1680545002169,0.11000001,1803.2,1803.0,3.04333218]
[1680545002370,0.11000001,1803.2,1803.0,3.59796218]
[1680545002567,0.11000001,1803.2,1803.0,3.04333218]
[1680545002829,0.11000001,1803.2,1803.0,3.57133218]
[1680545003391,0.11000001,1803.2,1803.1,9.14902218]
[1680545003596,0.11200001,1803.6,1803.1,17.68579516]
[1680545003597,0.11000001,1803.6,1803.1,17.68579516]
[1680545003890,0.11000001,1803.6,1803.5,8.62102218]
[1680545004085,0.11000001,1803.6,1803.5,3.04525218]
[1680545004311,0.11000001,1803.6,1803.5,2.76602218]
[1680545004545,0.11000001,1803.6,1803.4,0.02266921]
[1680545004672,0.11000001,1803.6,1803.3,0.27726]
[1680545004873,0.24340001,1803.6,1803.3,2.76602218]
[1680545005687,0.24340001,1803.6,1803.3,3.04328218]
[1680545005869,0.24340001,1803.6,1803.3,2.76602218]
[1680545006184,1.227,1803.5,1803.3,2.76602218]
[1680545006576,1.50424,1803.5,1803.3,2.76602218]
[1680545006908,0.150424,1803.4,1803.3,2.76602218]
[1680545007328,1.662674,1803.4,1803.1,0.44368537]
[1680545007530,1.235,1803.2,1803.1,0.44368537]
[1680545007735,2.06684,1803.2,1803.1,0.44368537]
[1680545007943,1.51228,1803.2,1802.6,0.27737]
[1680545008250,0.428538,1803.1,1802.5,0.41807288]
[1680545008399,0.428538,1803.1,1802.5,0.27738]
[1680545008601,1.224,1803.0,1802.6,2.76602218]
[1680545009419,1.50131,1803.0,1802.6,2.76602218]
[1680545009805,2.05594,1803.0,1802.6,2.76602218]
[1680545010123,0.482924,1802.9,1802.6,2.76602218]
[1680545010339,1.51235,1802.8,1802.6,2.76602218]
[1680545010647,7.36734,1802.8,1802.4,0.002]
[1680545010811,7.36734,1802.8,1802.0,1.11136161]
[1680545010812,1.50437,1802.6,1802.0,1.11136161]
[1680545011148,1.50441,1802.4,1802.1,2.76602218]
[1680545011846,1.00726903,1802.6,1801.9,0.008]
[1680545011847,3.92145903,1802.6,1801.9,0.002]
[1680545011994,1.51241,1802.4,1802.0,1.0]
[1680545012350,5.855,1802.5,1802.0,1.0]
[1680545012351,1.386241,1802.3,1802.0,1.27746]
[1680545012505,1.235,1802.3,1801.9,0.02868808]
[1680545012688,1.51242,1802.3,1801.9,0.02268808]
[1680545012892,1.235,1802.3,1801.9,1.02268808]
[1680545013108,1.51242,1802.3,1801.9,1.02268808]
[1680545013339,1.441723,1802.3,1802.0,2.76602218]
[1680545013532,1.441723,1802.3,1802.0,2.77202218]
[1680545013832,1.235,1802.3,1802.1,1.0]
[1680545014018,1.235,1802.3,1802.1,1.006]
[1680545014188,1.51243,1802.3,1802.1,0.006]
[1680545014390,1.51243,1802.3,1801.9,1.0]
[1680545014391,1.235,1802.2,1801.9,1.0]
[1680545014589,1.235,1802.2,1801.9,1.006]
[1680545014794,0.1235,1802.1,1801.9,1.0]
[1680545015637,1.237,1802.4,1802.0,2.76602218]
[1680545015958,1.235,1802.4,1802.1,1.0]
[1680545016121,1.227,1802.6,1802.2,1.27743]
[1680545016498,1.227,1802.6,1802.3,2.76602218]
[1680545016671,0.002,1802.7,1802.5,0.83217]
[1680545016870,1.227,1803.0,1802.5,3.59819218]
[1680545017004,0.1227,1802.9,1802.5,3.59819218]
[1680545017212,0.1227,1802.9,1802.7,1.0]
[1680545017410,0.1227,1802.9,1802.7,1.27735]
[1680545017651,0.1227,1802.9,1802.6,0.006]
[1680545017652,1.235,1802.8,1802.6,0.006]
[1680545017852,1.235,1802.7,1802.3,0.006]
[1680545018047,0.27738,1802.6,1802.3,2.76602218]
[1680545018233,0.27738,1802.6,1802.3,2.77202218]
[1680545018553,1.237,1802.9,1802.5,1.0]
[1680545018760,11.4648,1803.1,1802.8,1.0]
[1680545019055,1.02278,1803.0,1802.8,1.0]
[1680545019270,1.235,1803.1,1802.7,0.27736]
[1680545019418,1.235,1803.1,1802.8,1.0]
[1680545019767,1.235,1803.1,1802.8,4.04336218]
[1680545020209,0.935,1803.1,1802.8,3.77202218]
[1680545020413,0.935,1803.1,1802.8,4.04336218]
[1680545020650,0.935,1803.1,1802.8,4.04936218]
[1680545020860,3.002,1803.3,1802.9,2.76602218]
[1680545020861,1.237,1803.3,1802.9,2.76602218]
[1680545021169,1.50325,1803.4,1803.0,1.0]
[1680545021460,1.50125,1803.4,1803.1,2.76602218]
[1680545021610,1.224,1803.4,1803.1,2.76602218]
[1680545022222,2.154,1803.4,1803.1,2.76602218]
[1680545022775,2.43125,1803.4,1803.1,2.76602218]
[1680545023054,2.154,1803.4,1803.1,2.76602218]
[1680545023432,2.6702,1803.4,1803.1,2.76602218]
[1680545023683,2.154,1803.4,1803.1,3.04331218]
[1680545023832,0.11000001,1803.6,1803.1,3.04331218]
[1680545023833,2.27200001,1803.6,1803.3,1.0]
[1680545024168,0.11000001,1803.6,1803.3,3.76602218]
[1680545024468,0.11000001,1803.6,1803.4,1.0]
[1680545026818,0.11000001,1803.6,1803.4,4.04327218]
[1680545026969,0.11000001,1803.6,1803.5,0.02266795]
[1680545027859,0.11000001,1803.6,1803.5,3.06592013]
[1680545028065,0.07000002,1804.0,1803.5,3.62039013]
[1680545028265,0.07000002,1804.0,1803.8,1.0]
[1680545028516,1.37403002,1804.0,1803.8,1.0]
[1680545028675,0.34716002,1804.0,1803.6,2.77202218]
[1680545028880,0.34716002,1804.0,1803.6,2.76602218]
[1680545028881,0.90148002,1804.0,1803.6,2.76602218]
[1680545029062,2.154,1803.9,1803.5,0.02866795]
[1680545029268,0.07000002,1804.0,1803.8,1.0]
[1680545029572,0.33021502,1804.0,1803.8,1.0]
[1680545030329,0.33021502,1804.0,1803.8,3.76602218]
[1680545031303,0.07000002,1804.0,1803.9,2.76602218]
[1680545032223,0.34716002,1804.0,1803.8,0.008]
[1680545032387,0.07000002,1804.0,1803.5,1.81122]
[1680545032722,0.34716002,1804.0,1803.7,1.0]
[1680545032933,0.34716002,1804.0,1803.7,3.76602218]
[1680545032934,0.07000002,1804.0,1803.7,3.76602218]
[1680545033154,0.90148002,1804.0,1803.7,1.0]
[1680545033330,0.090148,1803.9,1803.4,0.006]
[1680545033643,0.367338,1803.9,1803.5,2.76602218]
[1680545033783,0.921688,1803.9,1803.5,2.76602218]
[1680545033986,0.07000002,1804.0,1803.5,3.15693252]
[1680545033987,0.2772,1803.7,1803.5,3.15693252]
[1680545034227,0.55439,1803.8,1803.5,3.16293252]
[1680545034435,0.55439,1803.8,1803.5,3.16093252]
[1680545034592,0.83159,1803.8,1803.5,3.16293252]
[1680545034796,0.83166,1803.6,1803.5,0.39091034]
[1680545035837,0.83166,1803.6,1803.2,1.0]
[1680545036048,2.97966,1803.6,1803.0,1.0]
[1680545036338,0.83181,1803.3,1803.0,3.72002218]
[1680545036555,0.83181,1803.3,1803.0,3.71602218]
[1680545036885,0.83181,1803.3,1803.1,0.39173992]
[1680545037085,2.148,1803.2,1803.1,0.39173992]
[1680545037392,3.277821,1803.2,1803.1,0.39173992]
[1680545037846,3.277821,1803.2,1802.8,0.95]
[1680545038027,3.277821,1803.2,1802.8,3.71602218]
[1680545038185,3.277821,1803.2,1803.0,0.95]
[1680545038186,1.135821,1803.2,1803.0,0.95]
[1680545038388,0.006,1803.2,1803.0,3.71602218]
[1680545038700,0.006,1803.3,1803.2,0.95]
[1680545038901,0.006,1803.5,1803.4,0.95]
[1680545039108,0.006,1803.6,1803.4,3.71602218]
[1680545039409,0.006,1803.6,1803.5,2.76602218]
[1680545039591,0.55635,1803.9,1803.5,2.76602218]
[1680545039592,0.27722,1803.7,1803.5,2.76602218]
[1680545039991,0.27721,1803.7,1803.5,2.76602218]
[1680545040195,0.006,1803.9,1803.6,0.95]
[1680545040441,0.28318,1803.9,1803.6,3.71602218]
[1680545040728,0.096751,1803.9,1803.6,0.95]
[1680545041030,5.855,1803.8,1803.2,0.952]
[1680545041235,6.68665,1803.7,1803.2,2.76602218]
[1680545041529,6.523665,1803.6,1803.1,0.39373992]
[1680545041784,0.83171,1803.5,1803.1,0.39173992]
[1680545042279,0.83771,1803.5,1803.1,0.39173992]
[1680545042451,7.997,1803.4,1803.1,0.39173992]
[1680545042656,0.27728,1803.2,1803.1,0.39173992]
[1680545042981,8.82984,1803.2,1802.5,0.27739]
[1680545043142,8.83784,1803.2,1802.6,3.71602218]
[1680545043986,8.83784,1803.2,1802.7,0.39603946]
[1680545044163,5.855,1803.0,1802.7,0.39603946]
[1680545044361,0.27733,1802.9,1802.7,0.39603946]
[1680545044997,0.27733,1802.9,1802.4,1.2274]
[1680545045146,0.27733,1802.9,1802.4,0.97268178]
[1680545045362,0.27733,1802.9,1802.4,0.95]
[1680545045363,6.68699,1802.9,1802.4,0.95]
[1680545045567,7.523623,1802.9,1802.4,0.95]
[1680545045887,7.523623,1802.9,1802.5,0.39712761]
[1680545047208,1.113963,1802.9,1802.5,0.39712761]
[1680545047364,3.27733,1802.9,1802.5,1.34712761]
[1680545047710,3.27733,1802.9,1802.8,0.95]
[1680545047711,0.006,1802.9,1802.8,0.95]
[1680545047909,0.002,1803.0,1802.8,0.95]
[1680545047910,0.006,1803.0,1802.8,0.95]
[1680545048862,0.006,1803.0,1802.9,0.39703526]
[1680545049061,0.4227094,1803.0,1802.9,0.39703526]
[1680545049381,12.02967158,1803.0,1802.9,0.39703526]
[1680545049558,12.02967158,1803.0,1802.3,1.056]
[1680545049559,15.25567158,1803.0,1802.3,1.056]
[1680545049763,8.009,1802.8,1802.3,1.05]
[1680545050062,7.48799,1802.7,1802.3,1.05]
[1680545050286,7.48999,1802.7,1802.3,1.05]
[1680545050580,7.48999,1802.7,1802.3,0.1]
[1680545050799,7.997,1802.6,1802.3,0.1]
[1680545050961,7.79674,1802.5,1802.4,0.35238168]
[1680545051156,9.022814,1802.5,1802.4,0.35238168]
[1680545051616,13.933814,1802.5,1802.4,0.35238168]
[1680545051817,16.97983618,1802.5,1802.4,0.00038168]
[1680545052000,16.97983618,1802.5,1802.3,0.1]
[1680545052196,13.99202218,1802.4,1801.7,0.1]
[1680545052511,1.94237,1801.9,1801.7,0.1]
[1680545052720,1.94237,1801.9,1801.8,0.1]
[1680545052721,4.94237,1801.9,1801.8,0.1]
[1680545052955,4.94237,1801.9,1801.8,0.46014665]
[1680545053136,3.83244,1801.9,1801.8,0.46014665]
[1680545053502,3.27748,1801.9,1801.8,0.46014665]
[1680545053708,3.0,1801.9,1801.8,0.46014665]
[1680545053945,3.0,1801.9,1801.8,0.1]
[1680545054099,0.327947,1801.9,1801.8,0.1]
[1680545054445,0.83244,1801.9,1801.8,0.1]
[1680545054613,9.68744,1801.9,1801.8,0.1]
[1680545054797,0.002,1801.9,1801.8,3.81602218]
[1680545055008,0.72091214,1802.6,1802.1,0.95]
[1680545055009,0.002,1802.5,1802.1,0.95]
[1680545055255,0.006,1802.6,1801.8,0.37949]
[1680545055256,0.55477,1802.6,1801.8,0.37949]
[1680545055404,0.55477,1802.6,1802.0,0.95]
[1680545055405,0.55481,1802.5,1802.0,0.95]
[1680545055606,0.27741,1802.4,1802.0,0.956]
[1680545055805,0.27741,1802.4,1801.9,0.36585371]
[1680545055806,8.84122,1802.4,1801.9,0.36585371]
[1680545056005,8.28841,1802.4,1801.9,0.36585371]
[1680545056240,8.28841,1802.4,1801.9,0.35985371]
[1680545056241,2.148,1802.2,1801.9,0.35985371]
[1680545056410,7.997,1802.0,1801.9,0.35985371]
[1680545056748,8.27646,1802.0,1801.9,0.35985371]
[1680545057042,8.27646,1802.0,1801.8,0.1]
[1680545057043,0.002,1802.0,1801.8,0.1]
[1680545057247,8.82944,1801.9,1801.8,0.1]
[1680545057445,0.995936,1801.9,1801.8,0.1]
[1680545057648,0.27748,1801.9,1801.8,0.1]
[1680545058002,1.108271,1802.3,1801.8,2.86602218]
[1680545058206,0.27744,1802.2,1802.0,0.95]
[1680545058405,0.27744,1802.2,1801.9,0.95]
[1680545058406,0.83231,1802.2,1801.9,0.95]
[1680545058665,0.83231,1802.2,1802.0,2.76602218]
[1680545058964,12.814,1802.4,1802.1,0.32933168]
[1680545058965,0.27941,1802.4,1802.1,0.32933168]
[1680545059260,0.27941,1802.4,1802.1,0.33533168]
[1680545059261,0.2774,1802.4,1802.1,0.33533168]
[1680545059473,1.66619,1802.7,1802.3,0.95]
[1680545059605,0.27738,1802.6,1802.4,0.95]
[1680545059805,0.27739,1802.6,1802.4,0.95]
[1680545060239,5.855,1802.6,1802.4,0.95]
[1680545060454,6.13437,1802.6,1802.4,0.95]
[1680545060654,6.13437,1802.6,1802.3,0.95]
[1680545060856,0.27937,1802.6,1802.3,0.95]
[1680545061058,0.36078,1802.6,1802.3,0.95]
[1680545061222,0.08341,1802.6,1802.3,0.95]
[1680545061556,0.27935,1802.8,1802.6,0.95]
[1680545061763,0.83204,1802.8,1802.7,0.95]
[1680545061916,2.154,1803.0,1802.7,0.95]
[1680545061917,3.2633,1803.0,1802.7,0.95]
[1680545062126,0.83203,1802.8,1802.7,0.95]
[1680545062355,0.915233,1802.8,1802.7,0.95]
[1680545062626,0.915233,1802.8,1802.5,0.95]
[1680545063063,3.915233,1802.8,1802.3,3.72202218]
[1680545063568,9.770233,1802.8,1802.3,0.956]
[1680545063716,9.770233,1802.8,1802.3,0.95]
[1680545063717,0.83214,1802.6,1802.3,0.95]
[1680545064346,9.68714,1802.6,1802.3,0.95]
[1680545064586,11.84314,1802.6,1802.3,0.95]
[1680545064892,11.84314,1802.6,1802.0,0.006]
[1680545064893,11.84314,1802.6,1802.1,0.95]
[1680545065189,1.94187,1802.4,1802.1,0.95]
[1680545065693,4.94187,1802.4,1802.1,0.95]
[1680545065857,12.93787,1802.4,1802.1,0.95]
[1680545066050,12.93987,1802.4,1801.8,0.106]
[1680545066287,1.293987,1802.3,1802.0,0.95]
[1680545066469,1.94205,1802.2,1802.0,0.956]
[1680545066883,0.002,1802.3,1802.2,0.95]
[1680545067208,0.55478,1802.5,1802.4,0.95]
[1680545067408,0.27739,1802.5,1802.4,0.95]
[1680545067578,0.83217,1802.5,1802.4,0.95]
[1680545068215,1.10951,1802.6,1802.4,0.95]
[1680545068216,0.27738,1802.6,1802.4,0.95]
[1680545068709,0.83213,1802.6,1802.4,0.95]
[1680545069002,0.83213,1802.6,1802.5,0.32047258]
[1680545069214,1.026292,1802.6,1802.5,0.32047258]
[1680545069907,1.026292,1802.6,1802.4,0.95]
[1680545070079,4.026292,1802.6,1802.4,0.95]
[1680545070620,9.881292,1802.6,1802.4,0.95]
[1680545070764,9.883292,1802.6,1802.5,0.31823233]
[1680545071606,4.028292,1802.6,1802.5,0.31823233]
[1680545071838,1.026292,1802.6,1802.4,0.95]
[1680545072030,0.1026292,1802.5,1802.4,0.95]
[1680545072228,0.9347992,1802.5,1802.4,0.95]
[1680545072725,0.3800192,1802.5,1802.4,0.95]
[1680545073040,0.1026292,1802.5,1802.4,1.26922483]
[1680545073240,0.3800192,1802.5,1802.4,1.26922483]
[1680545073743,0.002,1802.7,1802.4,4.03524701]
[1680545073905,0.002,1802.7,1802.6,0.95]
[1680545073906,0.27736,1802.7,1802.6,0.95]
[1680545074103,29.832,1802.9,1802.6,0.95]
[1680545074104,0.002,1802.9,1802.6,0.95]
[1680545074458,0.83196,1803.0,1802.9,0.94563898]
[1680545074595,0.360506,1803.0,1802.9,0.94563898]
[1680545074797,0.83194,1803.0,1802.9,0.94563898]
[1680545075635,3.83194,1803.0,1802.9,0.94563898]
[1680545077546,9.68694,1803.0,1802.9,0.94563898]
[1680545077757,11.83094,1803.0,1802.9,0.94563898]
[1680545078527,11.83094,1803.0,1802.5,0.006]
[1680545078712,7.038094,1802.9,1802.6,0.94563898]
[1680545078913,1.94141,1802.8,1802.6,0.94563898]
[1680545079335,7.79641,1802.8,1802.6,0.94563898]
[1680545079535,7.79841,1802.8,1802.6,0.94563898]
[1680545079735,6.634841,1802.7,1802.6,0.94563898]
[1680545079938,7.468921,1802.7,1802.4,0.94563898]
[1680545080634,7.997,1802.5,1802.2,0.006]
[1680545080852,7.997,1802.5,1802.2,0.94563898]
[1680545080853,0.83226,1802.3,1802.2,0.94563898]
[1680545081645,0.27742,1802.3,1802.2,0.94563898]
[1680545081845,1.827347,1802.3,1802.2,0.94563898]
[1680545082260,2.156,1802.5,1802.2,0.94563898]
[1680545082460,0.2774,1802.5,1802.3,0.94563898]
[1680545083374,0.83218,1802.5,1802.3,0.94563898]
[1680545084063,7.79684,1802.4,1802.3,0.94563898]
[1680545084244,7.79884,1802.4,1802.1,0.94563898]
[1680545084451,0.8323,1802.2,1802.1,0.94563898]
[1680545085278,6.6873,1802.2,1802.1,0.94563898]
[1680545085514,6.6893,1802.2,1801.9,0.006]
[1680545085779,6.6893,1802.2,1801.8,0.1]
[1680545085780,6.6893,1802.2,1801.8,0.106]
[1680545085948,0.83239,1802.0,1801.9,0.94563898]
[1680545089575,6.68739,1802.0,1801.9,0.94563898]
[1680545089875,0.83439,1802.0,1801.9,0.94563898]
[1680545090176,0.83239,1802.0,1801.9,0.94563898]
[1680545091449,0.27746,1802.0,1801.9,0.94563898]
[1680545091650,0.427789,1802.0,1801.9,0.94563898]
[1680545091983,0.002,1802.2,1802.1,0.94563898]
[1680545092182,0.27743,1802.2,1802.1,0.94563898]
[1680545093002,0.8323,1802.2,1802.1,1.24135544]
[1680545093181,0.8323,1802.2,1802.1,1.24735544]
[1680545093363,0.8323,1802.2,1802.1,0.29571646]
[1680545093561,0.91553,1802.2,1802.1,0.29571646]
[1680545093940,0.91553,1802.2,1802.0,0.94563898]
[1680545094900,0.91553,1802.2,1802.1,0.29102589]
[1680545096661,0.91553,1802.2,1802.1,0.28759604]
[1680545097882,6.77053,1802.2,1802.1,0.28759604]
[1680545098094,6.77253,1802.2,1802.1,0.28759604]
[1680545098904,6.77253,1802.2,1802.0,0.94563898]
[1680545099113,7.364603,1802.1,1802.0,0.94563898]
[1680545099252,7.366603,1802.1,1802.0,0.94563898]
[1680545099996,0.002,1802.1,1802.0,1.23662993]
[1680545100211,1.66459,1802.3,1802.2,0.94563898]
[1680545100412,1.94201,1802.3,1802.2,0.94563898]
[1680545101013,1.94201,1802.3,1801.8,0.1]
[1680545101014,5.855,1802.2,1801.8,0.1]
[1680545101172,6.68735,1802.1,1802.0,0.94563898]
[1680545101369,6.68935,1802.1,1802.0,0.94563898]
[1680545102003,6.68935,1802.1,1802.0,1.23585912]
[1680545105903,6.68935,1802.1,1802.0,0.94563898]
[1680545106110,7.7621341,1802.1,1802.0,0.94563898]
[1680545106973,7.7621341,1802.1,1801.8,0.1]
[1680545106974,15.91215628,1802.1,1801.8,0.1]
[1680545107300,7.79737,1801.9,1801.8,0.1]
[1680545107609,9.94237,1801.9,1801.8,0.1]
[1680545107791,14.467207,1801.9,1801.8,0.1]
[1680545108956,17.23322918,1801.9,1801.8,0.1]
[1680545109659,12.094207,1801.9,1801.8,0.1]
[1680545111166,14.242207,1801.9,1801.8,0.1]
[1680545112270,17.00822918,1801.9,1801.8,0.1]
[1680545112506,17.23822918,1801.9,1801.8,0.1]
[1680545113616,6.239207,1801.9,1801.8,0.1]
[1680545113913,12.098207,1801.9,1801.8,0.1]
[1680545114220,12.094207,1801.9,1801.8,0.1]
[1680545114783,12.094207,1801.9,1801.8,0.43780738]
[1680545115312,10.984277,1801.9,1801.8,0.43780738]
[1680545115512,4.574317,1801.9,1801.8,0.43780738]
[1680545115809,0.002,1802.0,1801.8,0.43780738]
[1680545116016,7.82320959,1802.1,1802.0,0.94563898]
[1680545116214,7.82319959,1802.1,1802.0,0.94563898]
[1680545116383,6.47296549,1802.1,1802.0,0.94563898]
[1680545116585,0.002,1802.1,1802.0,0.94563898]
[1680545116802,0.27743,1802.3,1801.8,0.1]
[1680545117065,0.27743,1802.3,1801.8,0.12268934]
[1680545117227,2.498573,1802.3,1802.2,0.94563898]
[1680545117429,8.353573,1802.3,1802.2,0.94563898]
[1680545117626,8.361573,1802.3,1802.2,0.94563898]
[1680545117881,8.361573,1802.3,1802.2,1.27564481]
[1680545118627,11.361573,1802.3,1802.2,1.27564481]
[1680545119594,11.585573,1802.3,1802.2,0.33000583]
[1680545119749,16.50559518,1802.3,1802.2,0.33000583]
[1680545119929,16.49959518,1802.3,1801.8,1.04563898]
[1680545120283,7.997,1802.1,1801.8,1.04563898]
[1680545120439,5.855,1801.9,1801.8,1.04563898]
[1680545120635,9.68944,1801.9,1801.8,1.04563898]
[1680545120854,9.68944,1801.9,1801.8,1.37504483]
[1680545121262,11.83044,1801.9,1801.8,1.37504483]
[1680545121447,13.125071,1801.9,1801.8,1.37504483]
[1680545121791,13.125071,1801.9,1801.8,1.37108658]
[1680545121994,13.125071,1801.9,1801.8,1.04168073]
[1680545122358,13.125071,1801.9,1801.8,0.09604175]
[1680545122691,18.730171,1801.9,1801.8,0.09604175]
[1680545123953,13.125071,1801.9,1801.8,0.09604175]
[1680545126036,16.12109318,1801.9,1801.8,0.09604175]
[1680545126237,18.34109318,1801.9,1801.8,0.09604175]
[1680545126546,16.12109318,1801.9,1801.8,0.09604175]
[1680545127584,13.125071,1801.9,1801.8,0.09604175]
[1680545127940,10.984071,1801.9,1801.8,0.09604175]
[1680545128342,7.990071,1801.9,1801.8,0.09604175]
[1680545128679,7.984071,1801.9,1801.8,0.09604175]
[1680545129785,10.984071,1801.9,1801.8,0.09604175]
[1680545130987,10.984071,1801.9,1801.8,0.50155691]
[1680545133948,10.984071,1801.9,1801.8,0.09604175]
[1680545134196,11.214071,1801.9,1801.8,0.09604175]
[1680545134581,13.368071,1801.9,1801.8,0.09604175]
[1680545136672,16.13409318,1801.9,1801.8,0.09604175]
[1680545137084,0.05436102,1801.6,1801.4,0.106]
[1680545137313,0.05436102,1801.6,1801.2,0.05821]
[1680545137314,15.49329218,1801.5,1801.2,0.05821]
[1680545137529,15.49329218,1801.5,1801.0,1.04563898]
[1680545137530,7.997,1801.3,1801.0,1.04563898]
[1680545137671,6.68777,1801.2,1801.0,1.04563898]
[1680545138014,6.68977,1801.2,1801.0,1.04563898]
[1680545138310,10.79824,1801.1,1801.0,1.04563898]
[1680545138512,11.886864,1801.1,1801.0,1.04563898]
[1680545138714,8.886864,1801.1,1801.0,1.04563898]
[1680545138926,8.886864,1801.1,1801.0,1.55530513]
[1680545141135,11.886864,1801.1,1801.0,1.55530513]
[1680545141546,8.886864,1801.1,1801.0,1.55530513]
[1680545142900,8.886864,1801.1,1801.0,1.04563898]
[1680545144645,0.008,1801.1,1801.0,1.04563898]
[1680545144798,0.2776,1801.1,1801.0,1.04563898]
[1680545144998,0.83281,1801.1,1801.0,1.04563898]
[1680545145653,6.68781,1801.1,1801.0,1.04563898]
[1680545145851,9.69581,1801.1,1801.0,1.04563898]
[1680545146146,11.054031,1801.1,1801.0,1.55843422]
[1680545149608,11.284031,1801.1,1801.0,1.55843422]
[1680545149846,11.284031,1801.1,1801.0,1.04563898]
[1680545150816,11.054031,1801.1,1801.0,1.04563898]
[1680545151237,11.284031,1801.1,1801.0,1.04563898]
[1680545151421,14.05005318,1801.1,1801.0,1.04563898]
[1680545151639,14.05005318,1801.1,1801.0,0.1]
[1680545151824,15.27205318,1801.1,1800.9,0.1]
[1680545152030,14.66658852,1801.0,1800.9,0.1]
[1680545152245,16.61193852,1801.0,1800.9,0.1]
[1680545152441,16.5575775,1801.0,1800.9,0.1]
[1680545155158,18.60193852,1801.0,1800.8,0.1]
[1680545155478,11.16419385,1800.9,1800.8,0.1]
[1680545155685,20.54149603,1800.9,1800.8,0.1]
[1680545155819,20.53809245,1800.9,1800.8,0.1]
[1680545156518,20.76809245,1800.9,1800.8,0.1]
[1680545156719,15.13600102,1800.8,1800.7,0.1]
[1680545156957,31.04301255,1800.8,1800.7,0.1]
[1680545157276,23.42954935,1800.8,1800.7,0.1]
[1680545157570,14.70354935,1800.8,1800.7,0.1]
[1680545158156,11.70354935,1800.8,1800.7,0.1]
[1680545158369,7.80056,1800.8,1800.7,0.1]
[1680545158524,10.56658218,1800.8,1800.7,0.1]
[1680545158721,10.79658218,1800.8,1800.7,0.1]
[1680545158979,10.79658218,1800.8,1800.7,0.76185551]